bitfinex-derivatives/quotes_SOLF0:USTF0_20250110
["timestamp","ask_amount","ask_price","bid_price","bid_amount"]
[1736519849903,31.91864484,186.65,186.5,0.98501044]
[1736519850102,31.91864484,186.68,186.6,2.6796]
[1736519850297,31.91864484,186.65,186.5,0.98501044]
[1736519851004,31.91864484,186.62,186.5,0.98501044]
[1736519851202,31.91864484,186.65,186.5,0.98501044]
[1736519851606,2.6794,186.62,186.56,2.6801]
[1736519851902,31.91864484,186.65,186.49,3.2565]
[1736519852093,31.91864484,186.65,186.51,31.91864484]
[1736519852294,31.91864484,186.65,186.49,3.2565]
[1736519852501,31.91864484,186.62,186.49,3.2565]
[1736519852897,2.6796,186.61,186.56,2.6802]
[1736519853201,31.91864484,186.62,186.49,3.2565]
[1736519854100,2.6799,186.59,186.54,2.6805]
[1736519854603,31.91864484,186.59,186.49,1.6019]
[1736519854806,2.6802,186.57,186.52,2.6807]
[1736519854998,31.91864484,186.59,186.49,1.6019]
[1736519855200,31.91864484,186.59,186.44,1.6101]
[1736519855397,31.91864484,186.56,186.44,1.6101]
[1736519855706,2.6802,186.57,186.44,1.6101]
[1736519855897,31.91864484,186.59,186.44,1.6101]
[1736519856103,31.91864484,186.56,186.44,1.6101]
[1736519856407,31.91864484,186.59,186.44,1.6101]
[1736519856605,31.91864484,186.56,186.44,1.6101]
[1736519856803,2.6812,186.5,186.45,2.6818]
[1736519857105,31.91864484,186.56,186.44,1.6101]
[1736519858806,31.91864484,186.52,186.33,5.3669]
[1736519859010,31.91864484,186.49,186.34,0.9857107]
[1736519859310,31.91864484,186.49,186.32,31.91864484]
[1736519859508,2.6818,186.45,186.4,2.6825]
[1736519860011,31.91864484,186.49,186.35,31.91864484]
[1736519860508,2.6818,186.46,186.35,31.91864484]
[1736519860813,31.91864484,186.56,186.38,31.91864484]
[1736519861010,31.91864484,186.56,186.41,31.91864484]
[1736519861307,31.91864484,186.56,186.42,1.5187]
[1736519861508,31.91864484,186.53,186.42,1.5187]
[1736519861709,2.681,186.51,186.42,1.5187]
[1736519862102,31.91864484,186.53,186.42,1.5187]
[1736519862510,31.91864484,186.5,186.39,1.6528]
[1736519862804,31.91864484,186.5,186.33,1.5187]
[1736519863009,31.91864484,186.5,186.33,3.1503]
[1736519863212,31.91864484,186.44,186.33,3.1503]
[1736519863513,2.6822,186.42,186.37,2.6829]
[1736519863908,31.91864484,186.41,186.29,83.62]
[1736519864207,31.91864484,186.41,186.26,33.47294484]
[1736519864706,2.6831,186.36,186.3,4.2563]
[1736519864907,31.91864484,186.41,186.3,1.5725]
[1736519865412,31.91864484,186.44,186.3,1.5725]
[1736519865608,31.91864484,186.47,186.32,31.91864484]
[1736519866204,38.31864484,186.5,186.35,31.91864484]
[1736519866401,38.31864484,186.5,186.36,1.5841]
[1736519866605,38.31864484,186.5,186.32,31.91864484]
[1736519866606,31.91864484,186.47,186.32,31.91864484]
[1736519866805,38.31864484,186.5,186.33,1.5841]
[1736519867411,2.6821,186.43,186.38,2.6826]
[1736519867611,31.91864484,186.47,186.38,2.6826]
[1736519868111,31.91864484,186.44,186.36,2.683]
[1736519868308,31.91864484,186.44,186.3,1.5725]
[1736519868508,2.6827,186.39,186.3,1.5725]
[1736519868709,31.91864484,186.44,186.39,2.6826]
[1736519868906,31.91864484,186.48,186.39,2.6826]
[1736519869114,2.6819,186.45,186.39,2.6826]
[1736519869415,31.91864484,186.48,186.39,2.6826]
[1736519869906,31.91864484,186.48,186.41,2.6823]
[1736519870415,6.4,186.5,186.45,2.6816]
[1736519870609,5.3588,186.62,186.35,31.91864484]
[1736519870815,2.6811,186.5,186.35,31.91864484]
[1736519871018,2.6811,186.5,186.45,2.6816]
[1736519871214,31.91864484,186.5,186.35,31.91864484]
[1736519871510,2.6816,186.46,186.3,33.49114484]
[1736519871716,2.6816,186.46,186.34,31.91864484]
[1736519872117,31.91864484,186.5,186.34,31.91864484]
[1736519872511,31.91864484,186.5,186.41,2.6823]
[1736519872712,2.6818,186.46,186.41,2.6823]
[1736519872908,31.91864484,186.5,186.34,31.91864484]
[1736519874008,31.91864484,186.5,186.42,2.6821]
[1736519874207,31.91864484,186.5,186.31,31.91864484]
[1736519874611,2.682,186.44,186.39,2.6826]
[1736519875219,2.6818,186.45,186.41,2.6822]
[1736519875418,31.91864484,186.5,186.34,31.91864484]
[1736519875812,31.91864484,186.53,186.37,31.91864484]
[1736519876014,31.91864484,186.53,186.38,1.548]
[1736519876220,2.6813,186.48,186.38,1.548]
[1736519876421,31.91864484,186.53,186.38,1.548]
[1736519876615,31.91864484,186.57,186.4,31.91864484]
[1736519876923,31.91864484,186.57,186.41,1.5648]
[1736519877111,31.91864484,186.54,186.41,1.5648]
[1736519877310,31.91864484,186.51,186.41,1.5648]
[1736519877511,31.91864484,186.48,186.31,6.34]
[1736519877814,31.91864484,186.48,186.4,2.6825]
[1736519878016,38.25864484,186.51,186.35,1.6014]
[1736519878212,38.25864484,186.51,186.41,2.6822]
[1736519878417,38.25864484,186.51,186.35,1.6014]
[1736519879317,31.91864484,186.48,186.35,1.6014]
[1736519879719,38.25864484,186.51,186.35,1.6014]
[1736519880321,31.91864484,186.39,186.25,28.57613208]
[1736519880521,2.6832,186.36,186.31,2.6838]
[1736519880716,31.91864484,186.39,186.25,33.30913208]
[1736519881512,6.34,186.42,186.25,33.30913208]
[1736519881513,31.91864484,186.36,186.25,4.733]
[1736519881711,2.6837,186.32,186.27,2.6843]
[1736519881916,31.91864484,186.36,186.25,3.2018]
[1736519882721,31.91864484,186.39,186.25,3.2018]
[1736519882922,2.6828,186.38,186.31,2.6836]
[1736519883118,31.91864484,186.39,186.31,2.6836]
[1736519883322,31.91864484,186.36,186.25,3.2018]
[1736519883623,31.91864484,186.39,186.25,3.2018]
[1736519883819,38.29864484,186.42,186.25,3.2018]
[1736519884014,2.6828,186.38,186.32,2.6835]
[1736519884218,31.91864484,186.39,186.25,3.2018]
[1736519884523,2.6836,186.33,186.25,3.2018]
[1736519884716,31.91864484,186.39,186.25,3.2018]
[1736519885221,2.6831,186.36,186.25,3.2018]
[1736519885423,31.91864484,186.39,186.25,3.2018]
[1736519885821,31.91864484,186.45,186.29,31.91864484]
[1736519886213,2.6822,186.42,186.3,1.6477]
[1736519886415,31.91864484,186.42,186.26,38.29864484]
[1736519886719,2.6825,186.41,186.26,38.29864484]
[1736519887025,31.91864484,186.42,186.26,38.29864484]
[1736519887521,31.91864484,186.45,186.29,31.91864484]
[1736519888322,6.4,186.47,186.26,6.38]
[1736519888323,6.4,186.47,186.32,31.91864484]
[1736519888527,6.4,186.47,186.33,1.5215]
[1736519888723,0.1961,186.49,186.35,31.91864484]
[1736519888925,0.1961,186.49,186.38,31.91864484]
[1736519889221,0.0001,186.49,186.44,31.91864484]
[1736519889529,86.76609232,186.6,186.47,31.91864484]
[1736519889722,31.91864484,186.6,186.48,3.0766]
[1736519890028,31.91864484,186.6,186.45,1.5215]
[1736519890518,2.6801,186.57,186.45,1.5215]
[1736519890922,31.91864484,186.6,186.45,1.5215]
[1736519891325,31.91864484,186.54,186.42,3.1338]
[1736519891522,31.91864484,186.48,186.36,3.2183]
[1736519891723,31.91864484,186.45,186.35,7.14403302]
[1736519891924,31.91864484,186.45,186.38,7.14403302]
[1736519892128,2.6824,186.41,186.38,7.14403302]
[1736519892430,2.6824,186.41,186.34,2.6832]
[1736519892431,31.91864484,186.45,186.27,6.44]
[1736519892628,2.6811,186.5,186.35,31.91864484]
[1736519892823,38.35864484,186.51,186.35,31.91864484]
[1736519893225,31.91864484,186.57,186.38,31.91864484]
[1736519893226,31.91864484,186.54,186.38,31.91864484]
[1736519893431,31.91864484,186.6,186.44,31.91864484]
[1736519893627,31.91864484,186.57,186.41,31.91864484]
[1736519893829,31.91864484,186.6,186.42,3.1119]
[1736519894031,31.91864484,186.6,186.46,31.91864484]
[1736519894221,2.6804,186.55,186.49,2.6812]
[1736519894525,31.91864484,186.54,186.42,3.1119]
[1736519894730,2.6812,186.5,186.43,2.6819]
[1736519894920,31.91864484,186.51,186.36,7.14403302]
[1736519895320,31.91864484,186.51,186.42,2.6821]
[1736519895525,6.48,186.55,186.33,4.7079]
[1736519895526,31.91864484,186.48,186.33,4.7079]
[1736519895832,2.6824,186.41,186.35,2.6832]
[1736519896026,6.46,186.46,186.33,3.1119]
[1736519896334,31.91864484,186.51,186.33,35.03054484]
[1736519896729,31.91864484,186.48,186.33,35.03054484]
[1736519897032,2.6818,186.45,186.37,2.6829]
[1736519897230,31.91864484,186.42,186.3,1.596]
[1736519897426,38.39864484,186.42,186.3,1.596]
[1736519898025,38.39864484,186.42,186.33,2.6835]
[1736519898026,2.6828,186.38,186.33,2.6835]
[1736519898228,38.39864484,186.42,186.26,3.1951]
[1736519898633,38.39864484,186.42,186.27,31.91864484]
[1736519898834,6.48,186.42,186.3,31.91864484]
[1736519899338,31.91864484,186.48,186.33,31.91864484]
[1736519899539,86.76609232,186.53,186.36,31.91864484]
[1736519899733,86.76609232,186.56,186.39,31.91864484]
[1736519899935,86.76609232,186.56,186.42,31.91864484]
[1736519900240,86.76609232,186.56,186.55,2.6803]
[1736519900541,31.91864484,186.63,186.45,31.91864484]
[1736519900736,2.6795,186.61,186.54,2.6804]
[1736519901036,31.91864484,186.63,186.48,31.91864484]
[1736519901239,93.26609232,186.68,186.56,2.6802]
[1736519901240,2.6791,186.64,186.56,2.6802]
[1736519901439,31.91864484,186.66,186.56,2.6802]
[1736519901643,31.91864484,186.63,186.49,4.8681]
[1736519901840,31.91864484,186.6,186.49,1.6137]
[1736519902043,31.91864484,186.66,186.43,3.2544]
[1736519902044,31.91864484,186.54,186.43,3.2544]
[1736519902241,31.91864484,186.54,186.41,7.14403302]
[1736519902446,2.6813,186.48,186.41,7.14403302]
[1736519902741,31.91864484,186.51,186.41,7.14403302]
[1736519903146,31.91864484,186.54,186.39,33.53234484]
[1736519903334,31.91864484,186.57,186.39,33.53234484]
[1736519903539,2.6803,186.55,186.44,2.6819]
[1736519903735,31.91864484,186.57,186.39,33.53234484]
[1736519904241,6.5,186.59,186.45,31.91864484]
[1736519904839,2.6805,186.55,186.47,2.6815]
[1736519905038,31.91864484,186.57,186.47,2.6815]
[1736519905239,31.91864484,186.57,186.42,31.91864484]
[1736519905636,31.91864484,186.6,186.42,31.91864484]
[1736519905835,6.5,186.62,186.45,31.91864484]
[1736519906036,0.87036817,186.61,186.45,31.91864484]
[1736519906240,31.91864484,186.6,186.45,31.91864484]
[1736519906442,31.91864484,186.6,186.42,31.91864484]
[1736519906636,31.91864484,186.57,186.39,1.6137]
[1736519906841,2.6813,186.49,186.42,2.6821]
[1736519907036,31.91864484,186.51,186.39,1.6137]
[1736519907343,2.6815,186.48,186.42,2.6821]
[1736519907547,31.91864484,186.48,186.35,28.57613208]
[1736519907739,31.91864484,186.48,186.33,31.91864484]
[1736519907940,2.6815,186.47,186.4,2.6824]
[1736519908140,31.91864484,186.51,186.36,31.91864484]
[1736519908546,2.6814,186.48,186.42,2.6822]
[1736519908843,31.91864484,186.48,186.33,31.91864484]
[1736519909049,31.91864484,186.51,186.44,2.6819]
[1736519909342,6.56,186.53,186.36,31.91864484]
[1736519909948,31.91864484,186.51,186.36,31.91864484]
[1736519910147,31.91864484,186.51,186.33,31.91864484]
[1736519910944,2.6815,186.47,186.42,2.6822]
[1736519911145,31.91864484,186.51,186.42,2.6822]
[1736519911345,2.6821,186.43,186.38,2.6826]
[1736519911843,31.91864484,186.42,186.27,83.7]
[1736519912042,31.91864484,186.39,186.27,86.839]
[1736519912446,2.683,186.37,186.33,2.6835]
[1736519912648,31.91864484,186.42,186.27,86.839]
[1736519912947,31.91864484,186.42,186.27,118.75764484]
[1736519914244,2.6827,186.39,186.35,2.6832]
[1736519914440,2.6827,186.39,186.27,86.839]
[1736519914647,2.6827,186.39,186.34,2.6833]
[1736519914841,31.91864484,186.42,186.27,118.75764484]
[1736519915045,31.91864484,186.45,186.27,118.75764484]
[1736519915251,31.91864484,186.48,186.33,31.91864484]
[1736519915451,31.91864484,186.51,186.33,31.91864484]
[1736519915653,0.86870658,186.5,186.33,31.91864484]
[1736519916047,31.91864484,186.48,186.33,31.91864484]
[1736519916248,31.91864484,186.48,186.3,31.91864484]
[1736519916452,0.86890162,186.47,186.3,31.91864484]
[1736519916862,31.91864484,186.48,186.3,31.91864484]
[1736519917354,6.58,186.52,186.3,31.91864484]
[1736519917355,31.91864484,186.45,186.3,31.91864484]
[1736519917950,2.6825,186.41,186.3,31.91864484]
[1736519918551,31.91864484,186.57,186.33,31.91864484]
[1736519918552,31.91864484,186.48,186.33,31.91864484]
[1736519918751,6.56,186.5,186.33,31.91864484]
[1736519918953,6.56,186.5,186.39,2.6825]
[1736519919145,2.6819,186.45,186.39,2.6825]
[1736519919453,2.6819,186.45,186.4,2.6825]
[1736519919653,31.91864484,186.48,186.3,31.91864484]
[1736519919846,0.87034441,186.47,186.35,2.6831]
[1736519920045,0.87034441,186.47,186.3,31.91864484]
[1736519920244,2.6818,186.45,186.33,31.91864484]
[1736519920446,31.91864484,186.51,186.36,31.91864484]
[1736519920652,31.91864484,186.57,186.39,31.91864484]
[1736519920859,31.91864484,186.57,186.42,31.91864484]
[1736519921257,6.56,186.59,186.42,31.91864484]
[1736519921455,6.56,186.59,186.54,2.6804]
[1736519921657,88.7333676,186.58,186.48,31.91864484]
[1736519921859,91.4133676,186.58,186.49,1.6677]
[1736519922156,88.7333676,186.58,186.49,1.6677]
[1736519922562,83.7129676,186.58,186.51,31.91864484]
[1736519922762,31.91864484,186.72,186.54,31.91864484]
[1736519922970,57.4970676,186.73,186.6,31.91864484]
[1736519923258,57.4970676,186.73,186.63,31.91864484]
[1736519923462,57.4970676,186.73,186.64,1.6368]
[1736519924057,1.6332,186.8,186.64,1.6368]
[1736519924262,1.6332,186.8,186.67,2.6785]
[1736519924463,31.91864484,186.78,186.64,1.6368]
[1736519925758,2.6776,186.75,186.64,1.6368]
[1736519926059,31.91864484,186.75,186.64,1.6368]
[1736519926253,2.6782,186.7,186.64,1.6368]
[1736519926458,31.91864484,186.75,186.65,2.6789]
[1736519926862,31.91864484,186.75,186.6,31.91864484]
[1736519927060,31.91864484,186.72,186.54,31.91864484]
[1736519927367,31.91864484,186.69,186.53,1.637]
[1736519927554,31.91864484,186.66,186.54,2.6803]
[1736519927759,31.91864484,186.66,186.53,1.637]
[1736519927959,31.91864484,186.66,186.54,2.6805]
[1736519928264,1.6708,186.68,186.53,1.637]
[1736519928565,31.91864484,186.66,186.53,1.637]
[1736519928768,31.91864484,186.63,186.46,3.213]
[1736519928962,31.91864484,186.6,186.46,4.8513]
[1736519929268,31.91864484,186.6,186.5,2.6811]
[1736519929566,31.91864484,186.6,186.46,4.8513]
[1736519930163,31.91864484,186.57,186.46,4.8513]
[1736519930365,2.6806,186.53,186.47,2.6814]
[1736519930563,31.91864484,186.57,186.39,31.91864484]
[1736519930764,31.91864484,186.57,186.4,4.7227]
[1736519930958,2.6811,186.51,186.43,2.6819]
[1736519931162,31.91864484,186.57,186.4,4.7227]
[1736519931366,1.6091,186.58,186.42,31.91864484]
[1736519931563,1.5337,186.59,186.42,31.91864484]
[1736519931866,31.91864484,186.54,186.4,4.7227]
[1736519932061,31.91864484,186.57,186.4,4.7227]
[1736519932464,31.91864484,186.57,186.42,31.91864484]
[1736519932764,1.6091,186.58,186.42,31.91864484]
[1736519933163,6.5,186.61,186.45,31.91864484]
[1736519933566,2.6799,186.58,186.52,2.6807]
[1736519933767,6.5,186.61,186.48,31.91864484]
[1736519934471,31.91864484,186.66,186.48,31.91864484]
[1736519934863,31.91864484,186.63,186.48,31.91864484]
[1736519935270,31.91864484,186.66,186.48,31.91864484]
[1736519935572,31.91864484,186.66,186.51,31.91864484]
[1736519935766,31.91864484,186.66,186.52,3.2642]
[1736519935963,31.91864484,186.66,186.52,4.8561]
[1736519936162,3.1344,186.7,186.52,4.8561]
[1736519936163,31.91864484,186.69,186.52,4.8561]
[1736519936370,3.1344,186.7,186.54,31.91864484]
[1736519936569,31.91864484,186.69,186.52,4.8561]
[1736519936774,31.91864484,186.66,186.52,4.8561]
[1736519937268,31.91864484,186.69,186.54,31.91864484]
[1736519937468,2.6783,186.7,186.57,31.91864484]
[1736519937670,31.91864484,186.75,186.57,31.91864484]
[1736519937870,2.6784,186.69,186.63,2.6791]
[1736519938069,31.91864484,186.72,186.57,31.91864484]
[1736519938371,2.6787,186.67,186.61,2.6794]
[1736519938567,31.91864484,186.72,186.56,6.5]
[1736519938972,31.91864484,186.63,186.52,7.5368]
[1736519939169,31.91864484,186.6,186.52,1.5977]
[1736519939567,6.5,186.64,186.52,1.5977]
[1736519939769,31.91864484,186.66,186.52,1.5977]
[1736519940174,31.91864484,186.69,186.52,1.5977]
[1736519940563,31.91864484,186.69,186.54,31.91864484]
[1736519940764,8.0369,186.7,186.54,31.91864484]
[1736519941075,2.6785,186.68,186.62,2.6792]
[1736519941575,8.0369,186.7,186.52,1.5977]
[1736519941576,6.5,186.7,186.6,2.6795]
[1736519941779,6.5,186.7,186.54,31.91864484]
[1736519941970,31.91864484,186.69,186.52,1.5977]
[1736519942165,31.91864484,186.63,186.52,1.5977]
[1736519942567,1.6305,186.68,186.45,29.61692281]
[1736519942568,31.91864484,186.6,186.45,29.61692281]
[1736519942873,31.91864484,186.57,186.45,29.61692281]
[1736519943377,31.91864484,186.6,186.44,1.509]
[1736519943972,31.91864484,186.57,186.44,1.509]
[1736519944579,31.91864484,186.54,186.4,3.0853]
[1736519944771,31.91864484,186.51,186.4,3.0853]
[1736519944966,2.6812,186.49,186.43,2.6821]
[1736519945166,1.6305,186.56,186.4,3.0853]
[1736519945467,31.91864484,186.57,186.51,2.6809]
[1736519945669,2.68,186.58,186.42,31.91864484]
[1736519945867,31.91864484,186.57,186.42,31.91864484]
[1736519946575,31.91864484,186.57,186.4,3.0853]
[1736519946576,31.91864484,186.54,186.4,3.0853]
[1736519947076,34.59924484,186.54,186.47,2.6814]
[1736519947379,31.91864484,186.57,186.47,2.6814]
[1736519947778,31.91864484,186.57,186.4,3.0853]
[1736519947976,31.91864484,186.57,186.42,31.91864484]
[1736519948177,4.2525,186.59,186.42,31.91864484]
[1736519948475,31.91864484,186.57,186.42,31.91864484]
[1736519948670,2.681,186.51,186.4,3.0853]
[1736519948867,31.91864484,186.57,186.45,2.6818]
[1736519949172,31.91864484,186.54,186.4,3.0853]
[1736519949373,2.6811,186.5,186.4,3.0853]
[1736519949578,31.91864484,186.54,186.45,2.6818]
[1736519949881,2.6818,186.46,186.37,1.509]
[1736519950079,31.91864484,186.51,186.43,2.6819]
[1736519950480,31.91864484,186.51,186.37,1.509]
[1736519950674,31.91864484,186.48,186.37,1.509]
[1736519951574,1.6588,186.47,186.37,1.509]
[1736519951780,2.6821,186.43,186.38,2.6828]
[1736519952476,1.6588,186.47,186.37,1.509]
[1736519952673,31.91864484,186.48,186.37,1.509]
[1736519953077,2.6814,186.48,186.43,2.682]
[1736519953380,31.91864484,186.48,186.37,1.509]
[1736519953779,2.6821,186.44,186.39,2.6825]
[1736519954179,2.6818,186.45,186.41,2.6823]
[1736519954375,31.91864484,186.48,186.37,1.509]
[1736519954781,2.6819,186.45,186.4,2.6824]
[1736519954982,31.91864484,186.48,186.4,2.6824]
[1736519955185,31.91864484,186.48,186.37,1.509]
[1736519955381,2.6822,186.43,186.37,1.509]
[1736519956281,2.6822,186.43,186.38,2.6827]
[1736519956882,31.91864484,186.48,186.37,1.509]
[1736519957182,1.6588,186.52,186.37,1.509]
[1736519957382,2.6814,186.48,186.43,2.6819]
[1736519957584,31.91864484,186.54,186.39,31.91864484]
[1736519957881,2.6802,186.56,186.52,2.6807]
[1736519958081,31.91864484,186.6,186.42,31.91864484]
[1736519958287,31.91864484,186.57,186.42,31.91864484]
[1736519958486,31.91864484,186.6,186.45,31.91864484]
[1736519958976,2.6804,186.55,186.5,2.681]
[1736519959176,31.91864484,186.54,186.39,38.41864484]
[1736519959379,31.91864484,186.54,186.4,3.0759]
[1736519959685,2.6807,186.53,186.4,3.0759]
[1736519960182,31.91864484,186.6,186.52,2.6808]
[1736519960387,31.91864484,186.6,186.42,31.91864484]
[1736519960583,2.6809,186.51,186.45,2.6818]
[1736519960780,31.91864484,186.51,186.4,3.0759]
[1736519961182,38.45864484,186.54,186.4,3.0759]
[1736519961482,6.54,186.54,186.4,3.0759]
[1736519961784,2.6808,186.52,186.4,3.0759]
[1736519962086,6.54,186.54,186.4,3.0759]
[1736519962286,31.91864484,186.57,186.42,31.91864484]
[1736519962486,3.148,186.62,186.42,6.54]
[1736519962683,2.6791,186.64,186.55,2.6803]
[1736519962987,31.91864484,186.69,186.54,31.91864484]
[1736519963186,2.6788,186.66,186.6,2.6795]
[1736519963384,31.91864484,186.69,186.54,31.91864484]
[1736519963685,3.3189,186.7,186.54,31.91864484]
[1736519964392,31.91864484,186.75,186.6,31.91864484]
[1736519964880,31.91864484,186.75,186.65,2.6789]
[1736519965085,31.91864484,186.72,186.57,31.91864484]
[1736519965286,31.91864484,186.69,186.54,39.32287554]
[1736519966081,31.91864484,186.72,186.54,31.91864484]
[1736519966279,31.91864484,186.69,186.54,31.91864484]
[1736519966585,31.91864484,186.72,186.54,31.91864484]
[1736519966787,31.91864484,186.72,186.57,31.91864484]
[1736519966989,31.91864484,186.72,186.54,31.91864484]
[1736519967190,31.91864484,186.69,186.54,31.91864484]
[1736519967589,31.91864484,186.69,186.52,4.6416]
[1736519967784,31.91864484,186.63,186.52,4.6416]
[1736519968180,2.6803,186.55,186.48,29.61692281]
[1736519968381,31.91864484,186.6,186.48,29.61692281]
[1736519968691,1.5781,186.59,186.46,1.5575]
[1736519969393,31.91864484,186.63,186.48,31.91864484]
[1736519969588,31.91864484,186.66,186.48,31.91864484]
[1736519969784,2.6792,186.63,186.48,31.91864484]
[1736519969985,31.91864484,186.66,186.48,31.91864484]
[1736519970187,31.91864484,186.66,186.46,1.5575]
[1736519970188,6.52,186.68,186.51,31.91864484]
[1736519970492,31.91864484,186.66,186.51,31.91864484]
[1736519970882,6.52,186.68,186.51,31.91864484]
[1736519971283,3.1506,186.74,186.48,31.91864484]
[1736519971284,31.91864484,186.72,186.57,31.91864484]
[1736519971489,3.1506,186.74,186.6,31.91864484]
[1736519971894,31.91864484,186.72,186.58,4.8589]
[1736519972096,31.91864484,186.69,186.58,4.8589]
[1736519972292,31.91864484,186.66,186.51,38.45864484]
[1736519972493,2.679,186.65,186.51,38.45864484]
[1736519972793,31.91864484,186.72,186.54,31.91864484]
[1736519973197,31.91864484,186.72,186.57,31.91864484]
[1736519973388,31.91864484,186.72,186.58,1.5972]
[1736519973698,3.1506,186.74,186.58,1.5972]
[1736519973897,3.1506,186.74,186.6,31.91864484]
[1736519974197,3.1506,186.74,186.6,6.56]
[1736519974591,3.1506,186.74,186.64,2.6789]
[1736519974788,31.91864484,186.81,186.65,31.91864484]
[1736519974988,0.86603472,186.8,186.65,31.91864484]
[1736519975189,33.51734484,186.87,186.71,31.91864484]
[1736519975393,0.86624981,186.86,186.72,4.6033]
[1736519975598,31.91864484,186.84,186.74,2.6776]
[1736519975795,31.91864484,186.84,186.72,3.0677]
[1736519975998,0.86590813,186.83,186.72,1.5327]
[1736519976193,31.91864484,186.84,186.72,1.5327]
[1736519976403,0.86624981,186.86,186.72,1.5327]
[1736519976599,2.6763,186.83,186.78,2.677]
[1736519976902,0.86624981,186.86,186.73,1.535]
[1736519977890,0.86624981,186.86,186.76,31.91864484]
[1736519978095,0.86624981,186.86,186.77,1.5356]
[1736519978298,0.86624981,186.86,186.84,2.6761]
[1736519978602,0.86624981,186.86,186.77,1.5356]
[1736519978997,0.86624981,186.86,186.83,2.6763]
[1736519979199,0.86624981,186.86,186.77,1.5356]
[1736519979893,0.86624981,186.86,186.73,33.45364484]
[1736519980096,0.86624981,186.86,186.74,1.5783]
[1736519980304,0.86624981,186.86,186.76,31.91864484]
[1736519980493,0.86624981,186.86,186.79,2.6769]
[1736519980801,0.86624981,186.86,186.76,31.91864484]
[1736519981397,0.86624981,186.86,186.79,31.91864484]
[1736519981902,0.86624981,186.86,186.75,31.91864484]
[1736519982103,0.86624981,186.86,186.74,1.5783]
[1736519983393,0.86624981,186.86,186.77,2.6771]
[1736519983594,0.86624981,186.86,186.74,1.5783]
[1736519983802,32.78489465,186.86,186.73,1.535]
[1736519984006,31.91864484,186.86,186.73,1.535]
[1736519984198,63.83728968,186.75,186.6,29.27269538]
[1736519984398,2.6796,186.6,186.59,49.70499079]
[1736519984605,6.72,186.6,186.57,4.12139196]
[1736519984801,63.83728968,186.58,186.54,34.55724345]
[1736519985101,31.91864484,186.55,186.54,34.55724345]
[1736519985497,31.91864484,186.55,186.43,1.6191]
[1736519985697,38.63864484,186.58,186.43,1.6191]
[1736519985899,26.92945851,186.57,186.43,1.6191]
[1736519986099,31.91864484,186.55,186.43,1.6191]
[1736519986303,58.84810335,186.57,186.43,1.6191]
[1736519986304,31.91864484,186.52,186.43,1.6191]
[1736519986495,31.91864484,186.49,186.43,1.6191]
[1736519987005,115.16814346,186.51,186.3,38.63864484]
[1736519987208,115.16814346,186.51,186.37,33.53184484]
[1736519987505,31.91864484,186.55,186.4,33.52234484]
[1736519987716,31.91864484,186.55,186.46,2.6816]
[1736519987906,31.91864484,186.58,186.4,33.52234484]
[1736519988111,120.15732979,186.61,186.43,31.91864484]
[1736519988509,31.91864484,186.61,186.46,31.91864484]
[1736519988805,31.91864484,186.61,186.54,2.6804]
[1736519989006,31.91864484,186.61,186.47,1.542]
[1736519989205,31.91864484,186.58,186.47,1.542]
[1736519990100,31.91864484,186.55,186.4,1.6037]
[1736519990405,34.59944484,186.52,186.42,2.6821]
[1736519990603,31.91864484,186.49,186.34,1.6595]
[1736519991407,38.65864484,186.55,186.34,1.6595]
[1736519991408,31.91864484,186.55,186.36,31.91864484]
[1736519992111,31.91864484,186.55,186.34,1.6595]
[1736519992112,31.91864484,186.55,186.39,31.91864484]
[1736519992503,6.74,186.57,186.42,31.91864484]
[1736519992705,6.74,186.57,186.43,1.5895]
[1736519992901,31.91864484,186.61,186.45,31.91864484]
[1736519993108,38.63864484,186.64,186.45,31.91864484]
[1736519993408,31.91864484,186.64,186.48,31.91864484]
[1736519993708,31.91864484,186.67,186.49,1.5649]
[1736519994115,34.59724484,186.67,186.49,1.5649]
[1736519994305,31.91864484,186.67,186.51,31.91864484]
[1736519994505,31.91864484,186.73,186.57,31.91864484]
[1736519994808,31.91864484,186.7,186.51,31.91864484]
[1736519995008,31.91864484,186.67,186.51,31.91864484]
[1736519995609,2.6788,186.66,186.58,2.6798]
[1736519995910,31.91864484,186.67,186.51,31.91864484]
[1736519996106,31.91864484,186.7,186.54,31.91864484]
[1736519996312,31.91864484,186.73,186.55,1.6472]